fUST/lending_fUST_20250612
["ID","MTS","AMOUNT","RATE_DAILY","PERIOD"]
[365500554,1749712238701,-178.96501656,0.00020484,2]
[365500555,1749712238710,-500.0,0.00020484,2]
[365500556,1749712238721,-967.72638634,0.00020484,2]
[365500557,1749712238731,-500.0,0.00020484,2]
[365500558,1749712238740,-508.65328579,0.00020484,2]
[365500559,1749712238750,-448.05135599,0.00020484,2]
[365500560,1749712238759,-500.0,0.00020484,2]
[365500561,1749712238770,-967.72638634,0.00020484,2]
[365500562,1749712238779,-500.0,0.00020484,2]
[365500563,1749712238789,-500.0,0.00020484,2]
[365500564,1749712238799,-500.0,0.00020484,2]
[365500565,1749712238809,-967.72638634,0.00020484,2]
[365500566,1749712238818,-500.0,0.00020484,2]
[365500567,1749712238827,-500.0,0.00020484,2]
[365500568,1749712238836,-967.72638634,0.00020484,2]
[365500569,1749712238846,-500.0,0.00020484,2]
[365500570,1749712238855,-500.0,0.00020484,2]
[365500571,1749712238864,-967.72638634,0.00020484,2]
[365500572,1749712238874,-500.0,0.00020484,2]
[365500573,1749712238883,-500.0,0.00020484,2]
[365500574,1749712238892,-967.72638634,0.00020484,2]
[365500575,1749712238902,-500.0,0.00020484,2]
[365500576,1749712238911,-500.0,0.00020484,2]
[365500577,1749712238921,-967.72638634,0.00020484,2]
[365500578,1749712238930,-500.0,0.00020484,2]
[365500579,1749712238939,-500.0,0.00020484,2]
[365500580,1749712238948,-967.72638634,0.00020484,2]
[365500581,1749712238957,-500.0,0.00020484,2]
[365500582,1749712238967,-500.0,0.00020484,2]
[365500583,1749712238976,-967.72638634,0.00020484,2]
[365500584,1749712238985,-500.0,0.00020484,2]
[365500585,1749712238994,-500.0,0.00020484,2]
[365500586,1749712239004,-967.72638634,0.00020484,2]
[365500587,1749712239013,-500.0,0.00020484,2]
[365500588,1749712239022,-500.0,0.00020484,2]
[365500589,1749712239031,-500.0,0.00020484,2]
[365500590,1749712239041,-967.72638634,0.00020484,2]
[365500591,1749712239050,-500.0,0.00020484,2]
[365500592,1749712239059,-500.0,0.00020484,2]
[365500593,1749712239068,-967.72638634,0.00020484,2]
[365500594,1749712239078,-500.0,0.00020484,2]
[365500595,1749712239087,-500.0,0.00020484,2]
[365500596,1749712239096,-967.72638634,0.00020484,2]
[365500597,1749712239106,-500.0,0.00020484,2]
[365500598,1749712239115,-967.72638634,0.00020484,2]
[365500599,1749712239124,-500.0,0.00020484,2]
[365500600,1749712239133,-967.72638634,0.00020484,2]
[365500601,1749712239143,-500.0,0.00020484,2]
[365500602,1749712239153,-500.0,0.00020484,2]
[365500603,1749712239163,-967.72638634,0.00020484,2]
[365500604,1749712239173,-500.0,0.00020484,2]
[365500605,1749712239183,-500.0,0.00020484,2]
[365500606,1749712239192,-967.72638634,0.00020484,2]
[365500607,1749712239201,-500.0,0.00020484,2]
[365500608,1749712239211,-500.0,0.00020484,2]
[365500609,1749712239221,-967.72638634,0.00020484,2]
[365500610,1749712239231,-500.0,0.00020484,2]
[365500611,1749712239241,-500.0,0.00020484,2]
[365500612,1749712239251,-967.72638634,0.00020484,2]
[365500613,1749712239261,-500.0,0.00020484,2]
[365500614,1749712239271,-967.72638634,0.00020484,2]
[365500615,1749712239281,-500.0,0.00020484,2]
[365500616,1749712239291,-500.0,0.00020484,2]
[365500617,1749712239301,-500.0,0.00020484,2]
[365500618,1749712239310,-967.72638634,0.00020484,2]
[365500619,1749712239320,-500.0,0.00020484,2]
[365500620,1749712239330,-967.72638634,0.00020484,2]
[365500621,1749712239340,-967.72638634,0.00020484,2]
[365500622,1749712239350,-500.0,0.00020484,2]
[365500623,1749712239359,-500.0,0.00020484,2]
[365500624,1749712239369,-967.72638634,0.00020484,2]
[365500625,1749712239379,-500.0,0.00020484,2]
[365500626,1749712239388,-500.0,0.00020484,2]
[365500627,1749712239398,-967.72638634,0.00020484,2]
[365500628,1749712239407,-500.0,0.00020484,2]
[365500629,1749712239417,-500.0,0.00020484,2]
[365500630,1749712239427,-500.0,0.00020484,2]
[365500631,1749712239437,-500.0,0.00020484,2]
[365500632,1749712239447,-967.72638634,0.00020484,2]
[365500633,1749712239456,-500.0,0.00020484,2]
[365500634,1749712239466,-500.0,0.00020484,2]
[365500635,1749712239475,-967.72638634,0.00020484,2]
[365500636,1749712239484,-500.0,0.00020484,2]
[365500637,1749712239495,-500.0,0.00020484,2]
[365500638,1749712239505,-967.72638634,0.00020484,2]
[365500639,1749712239515,-500.0,0.00020484,2]
[365500640,1749712239525,-500.0,0.00020484,2]
[365500641,1749712239535,-967.72638634,0.00020484,2]
[365500642,1749712239544,-500.0,0.00020484,2]
[365500643,1749712239554,-967.72638634,0.00020484,2]
[365500644,1749712239564,-435.62299419,0.00020484,2]
[365500645,1749712239573,-967.72638634,0.00020484,2]
[365500646,1749712239583,-355.09630593,0.00020484,2]
[365500647,1749712239592,-500.0,0.00020484,2]
[365500648,1749712239602,-967.72638634,0.00020484,2]
[365500649,1749712239612,-967.72638634,0.00020484,2]
[365500650,1749712239622,-500.0,0.00020484,2]
[365500651,1749712239631,-967.72638634,0.00020484,2]
[365500652,1749712239641,-500.0,0.00020484,2]
[365500653,1749712239650,-967.72638634,0.00020484,2]
[365500654,1749712239660,-500.0,0.00020484,2]
[365500655,1749712239669,-967.72638634,0.00020484,2]
[365500656,1749712239678,-967.72638634,0.00020484,2]
[365500657,1749712239688,-967.72638634,0.00020484,2]
[365500658,1749712239699,-967.72638634,0.00020484,2]
[365500659,1749712239709,-967.72638634,0.00020484,2]
[365500660,1749712239720,-967.72638634,0.00020484,2]
[365500661,1749712239732,-967.72638634,0.00020484,2]
[365500662,1749712239742,-967.72638634,0.00020484,2]
[365500663,1749712239751,-967.72638634,0.00020484,2]
[365500664,1749712239761,-967.72638634,0.00020484,2]
[365500665,1749712239771,-967.72638634,0.00020484,2]
[365500666,1749712239781,-967.72638634,0.00020484,2]
[365500667,1749712239790,-967.72638634,0.00020484,2]
[365500668,1749712239799,-967.72638634,0.00020484,2]
[365500669,1749712239809,-967.72638634,0.00020484,2]
[365500670,1749712239820,-967.72638634,0.00020484,2]
[365500671,1749712239829,-967.72638634,0.00020484,2]
[365500672,1749712239838,-967.72638634,0.00020484,2]
[365500673,1749712239848,-500.0,0.00020484,2]
[365500674,1749712239857,-967.72638634,0.00020484,2]
[365500675,1749712239866,-967.72638634,0.00020484,2]
[365500676,1749712239876,-967.72638634,0.00020484,2]
[365500677,1749712239885,-967.72638634,0.00020484,2]
[365500678,1749712239895,-967.72638634,0.00020484,2]
[365500679,1749712239905,-967.72638634,0.00020484,2]
[365500680,1749712239915,-967.72638634,0.00020484,2]
[365500681,1749712239924,-24900.0,0.00020485,2]
[365500682,1749712239934,-151.0,0.00020486,2]
[365500683,1749712239943,-151.0,0.00020486,2]
[365500684,1749712239953,-22586.78881896,0.00020486,2]
[365500685,1749712239962,-151.0,0.00020487,2]
[365500686,1749712239971,-254.801771,0.00020487,2]
[365500687,1749712239980,-298.18,0.00020591,2]
[365500688,1749712239989,-3514.76,0.000206,2]
[365500689,1749712239999,-155.0,0.00020642,2]
[365500690,1749712240008,-504.51884724,0.00020955,2]
[365500692,1749712240017,-500.0,0.00021021,2]
[365500694,1749712240026,-151.0,0.00021094,2]
[365500695,1749712240035,-151.0,0.00021094,2]
[365500697,1749712240044,-151.0,0.00021094,2]
[365500699,1749712240053,-151.0,0.00021094,2]
[365500700,1749712240062,-151.0,0.00021094,2]
[365500701,1749712240071,-151.0,0.00021094,2]
[365500702,1749712240080,-151.0,0.00021094,2]
[365500704,1749712240089,-151.0,0.00021094,2]
[365500706,1749712240098,-151.0,0.00021094,2]
[365500708,1749712240108,-460.0,0.00021095,2]
[365500710,1749712240118,-221.85036593,0.00021095,4]
[365500712,1749712240126,-151.0,0.00021095,2]
[365500714,1749712240137,-460.0,0.00021095,4]
[365500716,1749712240147,-460.0,0.00021095,4]
[365500719,1749712240162,-460.0,0.00021095,4]
[365500721,1749712240171,-460.0,0.00021095,4]
[365500722,1749712240180,-151.0,0.00021095,2]
[365500725,1749712240190,-460.0,0.00021095,4]
[365500727,1749712240199,-460.0,0.00021095,4]
[365500729,1749712240208,-460.0,0.00021095,4]
[365500731,1749712240219,-460.0,0.00021095,4]
[365500733,1749712240228,-460.0,0.00021095,4]
[365500735,1749712240237,-460.0,0.00021095,4]
[365500737,1749712240246,-460.0,0.00021095,4]
[365500739,1749712240255,-763.58,0.000211,2]
[365500741,1749712240265,-835.43173549,0.00021153,2]
[365500743,1749712240274,-151.0,0.00021367,2]
[365500745,1749712240283,-151.0,0.00021367,2]
[365500747,1749712240292,-151.0,0.00021367,2]
[365500749,1749712240302,-151.0,0.00021367,2]
[365500751,1749712240311,-151.0,0.00021367,2]
[365500753,1749712240321,-151.982778,0.00021367,2]
[365500755,1749712240330,-151.0,0.00021367,2]
[365500757,1749712240340,-151.0,0.00021367,2]
[365500759,1749712240349,-151.0,0.00021367,2]
[365500761,1749712240359,-160.0,0.00021367,2]
[365500763,1749712240368,-151.0,0.00021368,2]
[365500765,1749712240377,-151.0,0.00021368,2]
[365500767,1749712240386,-151.484213,0.00021368,2]
[365500769,1749712240396,-151.0,0.00021368,2]
[365500771,1749712240405,-151.0,0.00021368,2]
[365500773,1749712240415,-151.0,0.00021368,2]
[365500775,1749712240424,-151.0,0.00021368,2]
[365500777,1749712240433,-151.0,0.00021368,2]
[365500779,1749712240444,-151.0,0.00021368,2]
[365500781,1749712240453,-151.0,0.00021368,2]
[365500783,1749712240463,-151.0,0.00021368,2]
[365500786,1749712240474,-427.031363,0.00021368,2]
[365500788,1749712240484,-427.031363,0.00021368,2]
[365500790,1749712240493,-427.031363,0.00021368,2]
[365500792,1749712240503,-427.031363,0.00021368,2]
[365500794,1749712240512,-427.031363,0.00021368,2]
[365500796,1749712240522,-427.031363,0.00021368,2]
[365500798,1749712240531,-460.0,0.00021369,2]
[365500800,1749712240541,-151.0,0.00021369,2]
[365500802,1749712240550,-151.0,0.00021369,2]
[365500804,1749712240559,-460.0,0.00021369,4]
[365500806,1749712240569,-427.031363,0.00021369,2]
[365500808,1749712240579,-427.031363,0.00021369,2]
[365500810,1749712240588,-460.0,0.00021369,4]
[365500812,1749712240599,-460.0,0.00021369,4]
[365500814,1749712240608,-460.0,0.00021369,4]
[365500816,1749712240617,-460.0,0.00021369,4]
[365500818,1749712240627,-330.07,0.00021369,4]
[365500820,1749712240637,-460.0,0.00021369,4]
[365500822,1749712240647,-835.15920933,0.00021379,2]
[365500824,1749712240656,-160.0,0.00021379,2]
[365500826,1749712240667,-229.7508257,0.00021379,2]
[365500829,1749712240676,-424.26423502,0.00021379,2]
[365500830,1749712240686,-160.0,0.00021381,2]
[365500832,1749712240695,-160.0,0.00021381,2]
[365500835,1749712240705,-347.87,0.00021383,2]
[365500836,1749712240716,-151.0,0.00021401,2]
[365500839,1749712240727,-151.0,0.00021401,2]
[365500841,1749712240738,-151.0,0.00021416,2]
[365500842,1749712240747,-151.0,0.00021416,2]
[365500845,1749712240756,-300.392179,0.00021416,2]
[365500847,1749712240767,-151.0,0.00021416,2]
[365500849,1749712240776,-151.0,0.00021416,2]
[365500851,1749712240786,-196.95901,0.00021416,2]
[365500853,1749712240795,-151.0,0.00021416,2]
[365500855,1749712240807,-151.0,0.00021416,2]
[365500857,1749712240816,-151.0,0.00021416,2]
[365500859,1749712240825,-151.0,0.00021416,2]
[365500861,1749712240834,-460.0,0.00021416,4]
[365500863,1749712240843,-309.169359,0.00021416,2]
[365500865,1749712240853,-309.169359,0.00021416,2]
[365500867,1749712240861,-309.169359,0.00021416,2]
[365500869,1749712240871,-460.0,0.00021416,4]
[365500871,1749712240880,-309.169359,0.00021416,2]
[365500873,1749712240890,-309.169359,0.00021416,2]
[365500875,1749712240900,-309.169359,0.00021416,2]
[365500877,1749712240909,-151.0,0.00021416,2]
[365500879,1749712240917,-151.0,0.00021416,2]
[365500881,1749712240927,-151.0,0.00021416,2]
[365500883,1749712240936,-467.46,0.00021416,4]
[365500885,1749712240946,-309.169359,0.00021417,2]
[365500886,1749712240955,-309.169359,0.00021417,2]
[365500887,1749712240966,-151.0,0.00021417,2]
[365500888,1749712240975,-500.0,0.00021432,2]
[365500889,1749712240984,-207.4,0.00021473,2]
[365500890,1749712240994,-163.08632574,0.00021498,2]
[365500891,1749712241003,-192.08047746,0.000215,4]
[365500892,1749712241013,-192.08047746,0.000215,4]
[365500893,1749712241023,-151.0,0.00021633,2]
[365500894,1749712241032,-151.0,0.00021633,2]
[365500895,1749712241042,-151.0,0.00021633,2]
[365500896,1749712241051,-460.0,0.00021643,2]
[365500897,1749712241060,-460.0,0.00021643,4]
[365500898,1749712241070,-460.0,0.00021643,4]
[365500900,1749712241079,-460.0,0.00021643,4]
[365500902,1749712241088,-460.0,0.00021643,4]
[365500904,1749712241098,-460.0,0.00021643,4]
[365500906,1749712241107,-460.0,0.00021643,4]
[365500907,1749712241117,-274.14924135,0.0002169,4]
[365500909,1749712241126,-300.0,0.00021694,2]
[365500910,1749712241135,-151.0,0.00021756,2]
[365500912,1749712241144,-151.0,0.00021756,2]
[365500913,1749712241153,-153.717606,0.00021756,2]
[365500915,1749712241163,-151.0,0.00021756,2]
[365500916,1749712241172,-151.0,0.00021756,2]
[365500917,1749712241181,-151.0,0.00021756,2]
[365500918,1749712241191,-247.644723,0.00021756,2]
[365500919,1749712241201,-151.0,0.00021756,2]
[365500920,1749712241210,-151.0,0.00021756,2]
[365500921,1749712241327,-151.0,0.00021756,2]
[365500922,1749712241338,-155.091398,0.00021756,2]
[365500923,1749712241348,-168.0,0.00021856,2]
[365500924,1749712241359,-420.0,0.00021877,2]
[365500925,1749712241369,-207.273083,0.00021879,2]
[365500926,1749712241379,-207.273083,0.00021879,2]
[365500927,1749712241388,-207.273083,0.00021879,2]
[365500928,1749712241397,-207.273083,0.00021879,2]
[365500929,1749712241407,-207.273083,0.00021879,2]
[365500930,1749712241416,-207.273083,0.00021879,2]
[365500931,1749712241425,-207.273083,0.00021879,2]
[365500932,1749712241434,-207.273083,0.00021879,2]
[365500933,1749712241443,-207.273083,0.00021879,2]
[365500934,1749712241453,-207.273083,0.00021879,2]
[365500935,1749712241464,-168.0,0.00021885,2]
[365500936,1749712241475,-333.92852538,0.000219,6]
[365500937,1749712241484,-460.0,0.00021917,2]
[365500938,1749712241494,-212.577545,0.00021917,4]
[365500939,1749712241502,-460.0,0.00021917,4]
[365500940,1749712241511,-460.0,0.00021917,4]
[365500941,1749712241521,-458.25,0.00021917,4]
[365500942,1749712241530,-460.0,0.00021917,4]
[365500943,1749712241540,-151.0,0.00021918,2]
[365500944,1749712241550,-151.0,0.00021918,2]
[365500945,1749712241559,-151.0,0.00021918,2]
[365500946,1749712241569,-283.102826,0.00021918,2]
[365500947,1749712241579,-835.43173549,0.0002192,2]
[365500948,1749712241590,-19534.38706425,0.00022,2]
[365500949,1749712241600,-164.0,0.00022,2]
[365500950,1749712241609,-333.92852522,0.00022003,6]
[365500951,1749712241618,-333.92852522,0.00022107,6]
[365500952,1749712241628,-397.57,0.00022175,2]
[365500953,1749712241638,-439.99,0.00022191,4]
[365500954,1749712241648,-413.79,0.00022191,4]
[365500955,1749712241657,-509.47082423,0.00022192,2]
[365500956,1749712241667,-699.37,0.00022193,3]
[365500957,1749712241676,-333.92852522,0.0002221,6]
[365500958,1749712241686,-207.273083,0.00022275,7]
[365500959,1749712241696,-207.273083,0.00022275,7]
[365500960,1749712241705,-151.0,0.00022275,7]
[365500961,1749712241715,-151.0,0.00022275,7]
[365500962,1749712241726,-420.0,0.00022281,2]
[365500963,1749712241737,-699.37,0.00022293,4]
[365500964,1749712241746,-333.92852522,0.00022314,7]
[365500965,1749712241755,-699.37,0.00022393,7]
[365500966,1749712241765,-3514.76,0.000224,7]
[365500967,1749712241775,-333.92852522,0.00022417,7]
[365500968,1749712241785,-699.37,0.00022493,4]
[365500969,1749712241794,-763.58,0.000225,7]
[365500970,1749712241807,-333.92852522,0.00022521,7]
[365500971,1749712241817,-1279.614662,0.00022536,3]
[365500972,1749712241827,-699.37,0.00022593,5]
[365500973,1749712241835,-163.08632574,0.0002261,2]
[365500974,1749712241845,-333.92852522,0.00022624,7]
[365500975,1749712241854,-168.0,0.00022629,2]
[365500976,1749712241864,-505.91952875,0.0002265,2]
[365500977,1749712241874,-151.0,0.0002265,7]
[365500978,1749712241883,-835.43173549,0.00022688,2]
[365500979,1749712241893,-699.37,0.00022693,2]
[365500980,1749712241902,-427.031363,0.00022693,7]
[365500981,1749712241913,-427.031363,0.00022693,7]
[365500982,1749712241922,-3303.10239246,0.000227,2]
[365500983,1749712241932,-395.80780877,0.00022727,2]
[365500984,1749712241941,-333.92852522,0.00022728,7]
[365500985,1749712241951,-160.0,0.00022737,2]
[365500986,1749712241960,-800.0,0.00022754,2]
[365500987,1749712241971,-699.37,0.00022793,7]
[365500988,1749712241981,-151.0,0.00022793,7]
[365500989,1749712241991,-43757.0,0.000228,2]
[365500990,1749712242001,-154.468888,0.000228,7]
[365500991,1749712242010,-222.217157,0.000228,7]
[365500992,1749712242020,-151.0,0.000228,7]
[365500993,1749712242030,-232.497855,0.000228,7]
[365500994,1749712242040,-151.0,0.000228,7]
[365500995,1749712242050,-309.169359,0.000228,7]
[365500996,1749712242059,-309.169359,0.000228,7]
[365500997,1749712242068,-427.031363,0.000228,7]
[365500998,1749712242079,-151.0,0.000228,7]
[365500999,1749712242089,-427.031363,0.000228,7]
[365501000,1749712242099,-151.0,0.000228,7]
[365501001,1749712242108,-963.0,0.00022803,2]
[365501002,1749712242118,-2160.0,0.00022803,2]
[365501003,1749712242128,-405.0,0.00022803,2]
[365501004,1749712242138,-800.0,0.00022809,2]
[365501005,1749712242147,-207.273083,0.00022831,7]
[365501006,1749712242157,-207.273083,0.00022831,7]
[365501007,1749712242167,-333.92852522,0.00022831,8]
[365501008,1749712242177,-215.0738,0.00022842,2]
[365501009,1749712242187,-500.0,0.00022858,2]
[365501010,1749712242197,-500.0,0.00022858,2]
[365501011,1749712242207,-500.0,0.00022858,2]
[365501012,1749712242217,-501.97486548,0.00022858,2]
[365501013,1749712242227,-500.0,0.00022858,2]
[365501014,1749712242237,-259.30897065,0.00022858,2]
[365501015,1749712242247,-699.37,0.00022893,5]
[365501016,1749712242256,-3000.0,0.000229,2]
[365501017,1749712242267,-3000.0,0.0002291,2]
[365501018,1749712242277,-3000.0,0.0002292,2]
[365501019,1749712242287,-3000.0,0.0002293,2]
[365501020,1749712242297,-151.0,0.0002293,7]
[365501021,1749712242306,-279.07466187,0.0002293,7]
[365501022,1749712242316,-333.92852522,0.00022934,8]
[365501023,1749712242326,-500.0,0.00022938,2]
[365501024,1749712242336,-500.0,0.00022938,2]
[365501025,1749712242346,-500.0,0.00022938,2]
[365501026,1749712242356,-501.57892023,0.00022938,2]
[365501027,1749712242365,-500.0,0.00022938,2]
[365501028,1749712242375,-500.0,0.00022938,2]
[365501029,1749712242385,-475.24070915,0.00022938,2]
[365501030,1749712242395,-600.0,0.00022938,2]
[365501031,1749712242405,-500.0,0.00022938,2]
[365501032,1749712242416,-500.0,0.00022938,2]
[365501033,1749712242427,-3000.0,0.0002294,2]
[365501034,1749712242437,-3000.0,0.0002295,2]
[365501035,1749712242446,-151.0,0.0002295,7]
[365501036,1749712242456,-309.169359,0.0002295,7]
[365501037,1749712242467,-309.169359,0.0002295,7]
[365501038,1749712242478,-427.031363,0.0002295,7]
[365501039,1749712242488,-153.0588,0.0002295,7]
[365501040,1749712242498,-427.031363,0.0002295,7]
[365501041,1749712242508,-798.50935917,0.0002296,2]
[365501042,1749712242518,-3000.0,0.0002296,2]
[365501043,1749712242528,-447.26,0.00022967,2]
[365501044,1749712242538,-3000.0,0.0002297,2]
[365501045,1749712242548,-296.81108298,0.00022976,2]
[365501046,1749712242558,-3010.08535275,0.0002298,2]
[365501047,1749712242568,-3000.0,0.0002298,2]
[365501048,1749712242578,-3000.0,0.0002299,2]
[365501049,1749712242588,-699.37,0.00022993,2]
[365501051,1749712242597,-527073.69643718,0.00023,4]
[365501054,1749712242616,-424.44298731,0.00023,4]
[365501096,1749712247213,-5000.0,0.00020279,2]
[365501097,1749712247224,-967.72638634,0.00020484,2]
[365501098,1749712247234,-967.72638634,0.00020484,2]
[365501099,1749712247243,-500.0,0.00020484,2]
[365501100,1749712247252,-149.02378291,0.00020484,2]
[365501101,1749712247460,-350.97621709,0.00020484,2]
[365501102,1749712247471,-460.0,0.00021095,4]
[365501103,1749712247481,-460.0,0.00021369,4]
[365501104,1749712247490,-844.79171733,0.00021381,2]
[365501105,1749712247499,-460.0,0.00021643,4]
[365501106,1749712247510,-2459.5983414,0.00023,4]
[365501107,1749712295146,161.79,0.00019843,2]
[365501109,1749712320007,1536.9759986,0.00019522,2]
[365501110,1749712369667,179.84,0.00018997,2]
[365501111,1749712370070,224.8,0.00019789,2]
[365501114,1749712404224,165.506707,0.00013699,2]
[365501115,1749712444929,1105.42607763,0.0002,2]
[365501116,1749712444958,3894.57392237,0.0002,2]
[365501117,1749712446809,159.24,0.00018963,2]
[365501118,1749712447303,199.05,0.00019753,2]
[365501120,1749712523259,176.25,0.00019759,2]
[365501125,1749712542389,13344.50214906,0.00019484,2]
[365501126,1749712542416,11555.49785094,0.00019484,2]
[365501131,1749712597792,165.03,0.0001983,2]
[365501133,1749712672696,154.53,0.00019776,2]
[365501136,1749712843380,161.0,0.00024649,120]
[365501137,1749712849212,2147.2589422,0.0001948,2]
[365501139,1749713026715,3751.29927829,0.0002,2]
[365501140,1749713026743,1248.70072171,0.0002,2]
[365501142,1749713043107,5000.0,0.0002,2]
[365501143,1749713059647,5000.0,0.0002,2]
[365501144,1749713075032,5000.0,0.0002,2]
[365501145,1749713090931,1524.91534972,0.0002,2]
[365501146,1749713090956,3475.08465028,0.0002,2]
[365501147,1749713106155,5000.0,0.0002,2]
[365501150,1749713121418,5000.0,0.0002,2]
[365501151,1749713136686,4298.53142115,0.0002,2]
[365501152,1749713136712,701.46857885,0.0002,2]
[365501153,1749713152004,5000.0,0.0002,2]
[365501154,1749713167949,5000.0,0.0002,2]
[365501156,1749713184138,5000.0,0.0002,2]
[365501157,1749713199997,2072.14749258,0.0002,2]
[365501158,1749713200022,2927.85250742,0.0002,2]
[365501168,1749713293943,412.42412621,0.00010618,2]
[365501169,1749713303225,542.2494733,0.000189,2]
[365501170,1749713307175,276.02361762,0.00014114,2]
[365501173,1749713319115,1000.0,0.0001,2]
[365501174,1749713320046,170.073024,0.00019453,2]
[365501177,1749713322812,1804.19315416,0.00015,2]
[365501178,1749713323484,637.49043775,0.0002,2]
[365501179,1749713323513,209.39029657,0.00016,2]
[365501180,1749713324830,2135.52412695,0.0001,2]
[365501191,1749713401970,5000.0,0.0002,2]
[365501192,1749713417771,2658.39530745,0.0002,2]
[365501193,1749713417799,2341.60469255,0.0002,2]
[365501194,1749713421665,162.062795,0.00013699,2]
[365501247,1749713432575,-201.16875384,0.00020165,2]
[365501249,1749713432585,-742.88271016,0.00020385,2]
[365501251,1749713432595,-300.0,0.00020467,2]
[365501253,1749713432604,-300.0,0.00020467,2]
[365501255,1749713432614,-300.0,0.00020467,2]
[365501257,1749713432624,-300.0,0.00020467,2]
[365501259,1749713432633,-500.0,0.00020475,2]
[365501261,1749713432643,-500.0,0.00020475,2]
[365501263,1749713432652,-500.0,0.00020475,2]
[365501265,1749713432662,-500.0,0.00020475,2]
[365501267,1749713432671,-500.0,0.00020475,2]
[365501269,1749713432681,-500.0,0.00020475,2]
[365501271,1749713432691,-500.0,0.00020475,2]
[365501273,1749713432700,-500.0,0.00020475,2]
[365501276,1749713432710,-500.0,0.00020475,2]
[365501278,1749713432719,-500.0,0.00020475,2]
[365501279,1749713432728,-500.0,0.00020475,2]
[365501282,1749713432738,-500.0,0.00020475,2]
[365501284,1749713432747,-500.0,0.00020475,2]
[365501286,1749713432756,-500.0,0.00020475,2]
[365501288,1749713432768,-500.0,0.00020475,2]
[365501290,1749713432777,-500.0,0.00020475,2]
[365501292,1749713432787,-500.0,0.00020475,2]
[365501294,1749713432796,-500.0,0.00020475,2]
[365501296,1749713432805,-500.0,0.00020475,2]
[365501298,1749713432814,-500.0,0.00020475,2]
[365501300,1749713432823,-500.0,0.00020475,2]
[365501302,1749713432833,-500.0,0.00020475,2]
[365501304,1749713432843,-500.0,0.00020475,2]
[365501306,1749713432853,-628.1859083,0.00020475,2]
[365501308,1749713432863,-500.0,0.00020475,2]
[365501310,1749713432872,-500.0,0.00020475,2]
[365501312,1749713432881,-500.0,0.00020475,2]
[365501314,1749713432890,-500.0,0.00020475,2]
[365501316,1749713432899,-500.0,0.00020475,2]
[365501318,1749713432909,-500.0,0.00020475,2]
[365501320,1749713432918,-500.0,0.00020475,2]
[365501322,1749713432928,-300.0,0.00020475,2]
[365501324,1749713432938,-30231.94827063,0.00020476,2]
[365501326,1749713432947,-151.0,0.00020485,2]
[365501328,1749713432957,-151.0,0.00020485,2]
[365501330,1749713432966,-151.0,0.00020485,2]
[365501332,1749713432976,-151.968769,0.00020485,2]
[365501334,1749713432985,-151.0,0.00020485,2]
[365501337,1749713432995,-162.062795,0.00020548,2]
[365501339,1749713433006,-173.63,0.00020584,2]
[365501341,1749713433017,-787.14,0.000207,2]
[365501343,1749713433028,-500.0,0.00020764,2]
[365501345,1749713433041,-500.0,0.00020767,2]
[365501347,1749713433051,-508.42003127,0.00020807,2]